Cogmind - Beta 17 @@@ ROGUE MODE // 2026.06.25 @ 20:00:53 Player: JTMusky Result: Destroyed self via exploding Fusion Modulator Performance ------------- Evolutions (0) 0 Regions Visited (1) 200 Robots Destroyed (32) 160 Value Destroyed (548) 548 Prototype IDs (2) 40 Alien Tech Used (0) 0 Bonus (0) 0 TOTAL SCORE: 948 Bonus ------- None Cogmind --------- Core Integrity 0/250 Matter 300/300 Energy 100/100 System Corruption 0% Temperature Cool (12) Movement Flying (40) Location -10/Materials Parts ------- > --- POWER (1) -------- (None) > --- PROPULSION (2) --- Flight Unit > --- UTILITY (2) ------ Sensor Array Seismic Detector > --- WEAPON (2) ------- (None) > --- INVENTORY (5) ---- Light Ion Engine Flight Unit Flight Unit Medium Battery (150) Structural Scanner Peak State ------------ > --- POWER ------------ Ion Engine > --- PROPULSION ------- Aluminum Leg Aluminum Leg > --- UTILITY ---------- Small Storage Unit Improved Terrain Scanner > --- WEAPON ----------- EM Pulse Gun Small Laser > --- INVENTORY -------- Ion Engine Assault Rifle [Rating: 9] Favorites ----------- Power Ion Engine Engine Ion Engine Propulsion Aluminum Leg Leg Aluminum Leg Flight Unit Flight Unit Utility Small Storage Unit Device Seismic Detector Storage Small Storage Unit Weapon Small Laser Energy Gun Small Laser Ballistic Gun Assault Rifle Build | -11 -10 ------- Run | Yrd Mat Slots Evolved . | . . Power . | . . Propulsion . | . . Utility . | . . Weapon . | . . Parts Attached 15 | 7 8 Power 2 | 1 1 Engine 2 | 1 1 Core . | . . Reactor . | . . Propulsion 4 | 2 2 Treads . | . . Leg 2 | 2 . Wheel . | . . Hover . | . . Flight 2 | . 2 Utility 5 | 2 3 Device 4 | 1 3 Storage 1 | 1 . Processor . | . . Hackware . | . . Protection . | . . Artifact . | . . Weapon 4 | 2 2 Energy Gun 3 | 2 1 Energy Cannon . | . . Ballistic Gun 1 | . 1 Ballistic Cannon . | . . Launcher . | . . Special Weapon . | . . Impact Weapon . | . . Slashing Weapon . | . . Piercing Weapon . | . . Special Melee Weapon . | . . Unidentified Prototypes . | . . Parts Lost 10 | . 10 Power 2 | . 2 Propulsion 3 | . 3 Utility 1 | . 1 Weapon 4 | . 4 Highest Loss Streak 6 | . 6 To Critical Strikes . | . . Average Backups 3 | 1 4 Power 1 | . 1 Propulsion . | . 1 Utility . | . . Weapon . | . . Tool/Special . | . . Unused Backups 6 | . 6 Power 2 | . 2 Propulsion 2 | . 2 Utility 1 | . 1 Weapon . | . . Tool/Special 1 | . 1 Average Slot Usage (%) 95 | . 95 Engine 13 | . 13 Leg 12 | . 12 Flight 14 | . 14 Device 19 | . 19 Storage 6 | . 6 Energy Gun 19 | . 19 Ballistic Gun 8 | . 8 Peak Build Rating 9 | 9 9 Average Rating 7 | 5 7 On Entrance 4 | . 9 Avg Prop Armor Cover (%) . | . . Naked Turns . | . . Heaviest Build 15 | 14 15 Greatest Support 20 | 20 20 Greatest Overweight (x) 3 | 2 3 Average Overweight (x) . | . . Largest Inventory Capacity 8 | 8 8 Average Capacity 6 | 7 6 Most Carried 7 | 2 7 Average Carried 4 | 1 4 Final Capacity 8 | 8 5 Final Carried 5 | 2 5 Class Distribution -------------------- 100% | Mutant Dominant Class ---------------- Mutant | -10/Materials Resources | -11 -10 ----------- Run | Yrd Mat Matter Collected 471 | 270 201 Remotely . | . . Salvage Created 1027 | 347 680 Parts 54 | 19 35 Haulers Intercepted 1 | . 1 Recyclers Shooed . | . . Parts Field Recycled . | . . Retrieved Matter . | . . Parts Self-Destructed . | . . Prevented . | . . Parts Restored . | . . Kills | -11 -10 ------- Run | Yrd Mat Combat Hostiles Destroyed 14 | . 14 Guns 13 | . 13 AOE 1 | . 1 Classes Destroyed 8 | 3 5 Worker 2 | 2 . Tunneler 9 | 9 . Hauler 1 | . 1 Recycler 2 | 1 1 Operator 1 | . 1 Watcher 3 | . 3 Swarmer 5 | . 5 Grunt 9 | . 9 Best Kill Streak 6 | 6 6 Combat Bots Only 6 | . 6 Max Kills in Single Turn 2 | 1 2 Gunslinging . | . . Exploded 1 | . 1 Melee . | . . Uniques/NPCs Destroyed . | . . Combat | -11 -10 -------- Run | Yrd Mat Hostile Shots Fired 110 | . 110 Missed 25 | . 25 Hits 85 | . 85 Projectile 85 | . 85 Damage Taken 961 | . 961 Core 310 | . 310 Absorbed by Shields . | . . Core Remaining (%) 100 | 100 . Volleys Fired 88 | 20 68 Largest 2 | 2 2 Hottest 80 | 80 80 Shots Fired 173 | 40 133 Gun 173 | 40 133 Cannon . | . . Launcher . | . . Special . | . . Kinetic 42 | . 42 Thermal 68 | 20 48 Explosive . | . . Electromagnetic 63 | 20 43 Robot Hit Streak 11 | 11 9 Robot Miss Streak 7 | 3 7 Penetration Max . | . . Secondary Targets 5 | . 5 Max Gunslinging Chain 1 | . 1 Shots Hit Robots 101 | 25 76 Core Hits 49 | 13 36 Critical Kills . | . . Critical Parts Destroyed . | . . Critical Strikes 1 | 1 . Corrupt 1 | 1 . Melee Attacks . | . . Impact . | . . Slashing . | . . Piercing . | . . Sneak Attacks . | . . Combat Hostiles . | . . Follow-up Attacks . | . . Damage Inflicted 1337 | 312 1025 Guns 1221 | 287 934 Cannons . | . . Explosions 116 | 25 91 Melee . | . . Ramming . | . . Kinetic 328 | . 328 Thermal 502 | 131 371 Explosive . | . . Electromagnetic 507 | 181 326 Impact . | . . Slashing . | . . Piercing . | . . Highest Corruption . | . . Average Corruption . | . . Corruption Purged . | . . Corruption Blocked . | . . Overload Shots . | . . Overflow Damage 97 | . 97 Projectiles . | . . Explosions 97 | . 97 Melee . | . . Knockbacks . | . . Impact . | . . Kinetic . | . . Secondary . | . . Self-Inflicted Damage 113 | . 113 Shots 1 | . 1 Rammed . | . . Targets Rammed . | . . Kicked . | . . Crushed . | . . Highest Temperature 198 | 72 198 Average Temperature 55 | 22 65 Received Heat Transfer 306 | . 306 Siege Activations . | . . Martial Activations . | . . Shielding Activations . | . . Robots Disrupted . | . . Combat Hostiles . | . . Robots Corrupted . | . . Combat Hostiles . | . . Parts Fried . | . . Impact Corruptions . | . . Robots Melted . | . . Combat Hostiles . | . . Parts Melted . | . . Heat Transferred 1025 | 250 775 Parts Sabotaged . | . . Parts Stolen . | . . Parts Stripped . | . . Power Chain Reactions 4 | 1 3 Alert | -11 -10 ------- Run | Yrd Mat Maximum Alert Level . | . . Low Security (%) 100 | 100 100 Level 1 . | . . Level 2 . | . . Level 3 . | . . Level 4 . | . . Level 5 . | . . High Security . | . . Max Security . | . . Peak Influence 148 | 20 148 Initial . | . . Average 53 | 3 72 Influence Increases 546 | 60 486 Destroy 0b10 Robot/C 280 | . 280 Destroy 0b10 Robot/NC 90 | 60 30 Destroy Leader 78 | . 78 Successful Hack 15 | . 15 Disable Machine 15 | . 15 Destroy Structure 8 | . 8 Lose Combat Pursuer 60 | . 60 Influence Decreases 438 | 60 378 Time Decay 338 | 60 278 Lost Part 100 | . 100 Squads Dispatched 4 | . 4 Investigation 3 | . 3 Extermination . | . . Reinforcement 1 | . 1 Assault . | . . Garrison . | . . Intercept . | . . Searches Triggered . | . . Construction Impeded . | . . Haulers Reinforced . | . . Active Scanning Responses . | . . Cargo Convoy Interrupts . | . . Stealth | -11 -10 --------- Run | Yrd Mat Distress Signals 1 | . 1 Communications Jammed . | . . Distress Signals . | . . Times Spotted 24 | . 24 Peak Tracking Total 4 | . 4 Tactical Retreats 2 | . 2 Traps | -11 -10 ------- Run | Yrd Mat Traps Triggered 1 | . 1 Indirectly . | . . Trap Hack Attempts . | . . Triggered . | . . Disarmed . | . . Reprogrammed . | . . Reused . | . . Traps Extracted . | . . Installed . | . . Triggered . | . . Machines | -11 -10 ---------- Run | Yrd Mat Machines Disabled 2 | . 2 Max in Single Turn 1 | . 1 Machines Repaired . | . . Machines Dismantled . | . . Machines Sabotaged . | . . Overloaded Fab Kills . | . . Hacking | -11 -10 --------- Run | Yrd Mat Machines Accessed 6 | . 6 Terminals 6 | . 6 Fabricators . | . . Repair Stations . | . . Recycling Units . | . . Scanalyzers . | . . Garrison Access . | . . Total Hacks 18 | . 18 Successful 10 | . 10 Failed 8 | . 8 Catastrophic . | . . Database Lockouts . | . . Manual . | . . Terminals 18 | . 18 Fabricators . | . . Repair Stations . | . . Recycling Units . | . . Scanalyzers . | . . Garrison Access . | . . Terminal Hacks 10 | . 10 Record 1 | . 1 Robot Analysis 1 | . 1 Prototype ID Bank 1 | . 1 Alert Level 1 | . 1 Locate Traps 1 | . 1 Investigation Status 1 | . 1 Hauler Manifests 1 | . 1 Zone Layout 3 | . 3 Fabricator Hacks . | . . Repair Station Hacks . | . . Recycling Unit Hacks . | . . Scanalyzer . | . . Garrison Access Hacks . | . . Unauthorized Hacks . | . . Terminals . | . . Fabricators . | . . Repair Stations . | . . Recycling Units . | . . Scanalyzers . | . . Garrison Access . | . . Data Cores Recovered . | . . Used . | . . Hacking Detections 5 | . 5 Full Trace Events . | . . Feedback Events . | . . Feedback Blocked . | . . Robot Schematics Acquired . | . . Robots Built . | . . Authchips . | . . Time . | . . Total Robot Build Rating . | . . Part Schematics Acquired . | . . Parts Built . | . . Authchips . | . . Time . | . . Total Part Build Rating . | . . Part Studies Acquired . | . . Parts Repaired . | . . Time . | . . Parts Recycled . | . . Recycled Matter . | . . Retrieved Matter . | . . Retrieved Components . | . . Parts Scanalyzed . | . . Part Schematics Acquired . | . . Parts Damaged . | . . Bothacking | -11 -10 ------------ Run | Yrd Mat Used RIF Installer . | . . Robots Hacked . | . . Non-combat . | . . Combat . | . . Robot Hacks Applied . | . . Relay Couplers Released . | . . Fabnet Peak Effective % . | . . Robots Rewired . | . . Allies Hacked . | . . Hacks Repelled . | . . Allies | -11 -10 -------- Run | Yrd Mat Total Allies . | . . Largest Group . | . . Highest-Rated Group . | . . Highest-Rated Ally . | . . Total Orders . | . . Ally Attacks . | . . Total Damage . | . . Kills . | . . Allies Corrupted . | . . Allies Melted . | . . Intel | -11 -10 ------- Run | Yrd Mat Active Infowar (turns) 683 | 18 665 Sensors 78 | . 78 Terrain 292 | 18 274 Structural 311 | . 311 Seismic 349 | . 349 Robot Analysis Total 1 | . 1 Derelict Logs Recovered . | . . Drone Launches . | . . Drone Recoveries . | . . Exploration | -11 -10 ------------- Run | Yrd Mat Turns Passed 984 | 265 719 Spaces Moved 830 | 158 672 Core 14 | 8 6 Treads . | . . Legs 309 | 150 159 Wheels . | . . Hover . | . . Flight 507 | . 507 Fastest Speed 37 | 50 37 Average Speed 69 | 119 58 Slowest Speed 200 | 150 200 Overloaded Moves . | . . Propulsion Burnouts . | . . Robots Hopped 5 | . 5 Potential Cave-ins . | . . Cave-ins Triggered . | . . Exploration Rate (%) 49 | 6 93 Regions Visited 1 Branch Regions . Pre-discovered Areas . | . . Known Exits Taken . | . . Unknown Exits Taken 1 | 1 . Scrap Searched . | . . Spaces Dug . | . . Terrain Destroyed 9 | 2 7 Melee . | . . Projectile . | . . AOE 9 | 2 7 Terrain Rammed . | . . Walls Destroyed . | . . Machines Disabled . | . . Actions | -11 -10 --------- Run | Yrd Mat Total 1049 | 191 858 Wait 109 | 5 104 Move 819 | 157 662 Hop 5 | . 5 Pick Up 9 | 2 7 Fast Attach 12 | 7 5 Attach 2 | . 2 Detach . | . . Swap 2 | . 2 Drop 3 | . 3 Fire 88 | 20 68 Melee . | . . Ram . | . . Kick . | . . Crush . | . . Escape Stasis . | . . Rewire . | . . Trap . | . . Miscellaneous . | . . Route ------- -11/Scrapyard -10/Materials (discovered 4 exits: [*Mat x3] / [*Min]) History --------- Turn | Location | Event 2 | -11/Scrapyard | Met Revision 17 11 | -11/Scrapyard | Discovered new exit (range 14) 266 | -11/Scrapyard | Entered Materials 306 | -10/Materials | Build established: Mutant 440 | -10/Materials | Discovered new exit (range 16) 482 | -10/Materials | Discovered new exit (range 15) 555 | -10/Materials | Core integrity fell below 50% 612 | -10/Materials | Lost 6 parts (1p2n1u2w) 686 | -10/Materials | Core integrity fell below 20% 741 | -10/Materials | Discovered new exit (range 13) 840 | -10/Materials | Discovered new exit (range 15) 866 | -10/Materials | Derelicts attacked the area 985 | -10/Materials | Destroyed self via exploding Fusion Modulator Last Messages --------------- Downloading prototype IDs... Imp. EM Shotgun Adv. Beam Cannon 00903_ Dropped Datajack. 00904_ Acquired Sensor Array. 00921_ Acquired 10 matter. 00931_ K-01 Serf cleans the Fusion Modulator. 00941_ K-01 Serf cleans the Terminal. 00978_ G-47 Trooper destroyed. 00984_ Acquired 9 matter. 00985_ Fusion Modulator explodes. 00985_ Assault Rifle destroyed. 00985_ Destroyed Assault Rifle. 00985_ Flight Unit destroyed. [Achievement: Overwhelming] 00985_ Destroyed Flight Unit. 00985_ Sml. Laser destroyed. 00985_ Destroyed Sml. Laser. 00985_ Lgt. Ion Engine destroyed. 00985_ Destroyed Lgt. Ion Engine. Map ----- +----------------------------------------------------+ | ## ^ # # ####""|"!""####### ^| | | ##^^""" + # ############"T"### "" """ | | ## """ # """# ########### /// # "T = """ | | ## """ # """# #!!! #### // # "" """ | | ## """ # """# #!! #### // # | | """ # """# # ! #### + ! | | + """# #/ #### # ### | | # # + #### # # | | ######### # ############+####### | | # ######### # "T" # # ### | | ## ##????## # """ # # """ ### | | = ##! !##????## # # ! # """ ### | | ###!!!!###????## ####+### # """ ### | | ##########????## ? # # ### | | #########?????## + # !! ### | | ##????????????## # # !! ##### | | ##????????????## ###+#### # ! ##### | | ##????????????## # T =## ! # ###?? | | ################ # =%T# ############## | | ################ # /## ## ### | | # ## #% ########### # | | # """"" ## # ########### """ # | | < # """"" ## # ##???????## == """ # | | # """"" "T" ## !#g ##???????## == """ # | | ### """ ## !!# ##???????## == # | | ### ##=!%# =*@ ########### # | | #####+#+##########=!!#####################+######+ | | #### ? *! | | | | #### ? | | ############################################### | | ############################################### | | ##????????????????????????????????????????????? | | ##????????????????????????????????????????????? | | #####????????????????????????????????????????????? | | | | | | | | | | | | | | | | | | | | | | | | | | | | | | | +----------------------------------------------------+ Best States ------------- Heat Dissipation 25 Energy Generation 10 Energy Capacity 250 Matter Stores 300 Matter Capacity 300 Sight Range 16 Robot Scan Range 14 Terrain Scan Range 16 Terrain Scan Density 10 Evasion (%) 62 Item Schematics ----------------- None Robot Schematics ------------------ None Fabricated ------------ Nothing Repaired ---------- Nothing Studied --------- None Alien Tech Used ----------------- None Achievements -------------- Overwhelming You Again Challenges ------------ None Game ------ Seed LegCombatMaterializer Manual? 0 Play Time 00:21:06 Cumulative 47.8 hours Start 2026.06.25 @ 19:38:53 End 2026.06.25 @ 20:00:53 Sessions 1 Manual Loads 0 Difficulty Rogue Special Mode None Game No. 68 Rogue 68 Adventurer 0 Explorer 0 Win Type - Total 0 Types 0/0/0/0/0/0/0/0/0/0 Lore% 15 Gallery% 19 Achievement% 15 Wizard Run 0 Options --------- Layout 2 ASCII 1 Keyboard 1 Movement Vi Keybinds 1 Fullscreen 2 Font 32/SmallcapsGlow Map View 50x44 Zoom Use 0% Tactical HUD 1 Map Filters NONE Filters NONE Steam 0 RUN: c1dc3114-d7b0-4d14-aa3f-4be86bd9bebd